[Event "Late-Titled-Tuesday-Blitz-April-30-2024"]
[Site "Chess.com"]
[Date "2024.04.30"]
[Round "3"]
[White "BeanScreen"]
[Black "zacachess"]
[Result "1-0"]
[WhiteElo "2676"]
[BlackElo "2328"]
[TimeControl "180+1"]
[EndTime "14:29:07 PDT"]
[Termination "BeanScreen won by resignation"]

1. e4 {[%clk 0:03:00.9]} 1... c5 {[%clk 0:02:59]} 2. Nf3 {[%clk 0:02:59.8]} 2...
d6 {[%clk 0:02:59.3]} 3. d4 {[%clk 0:03:00]} 3... cxd4 {[%clk 0:03:00.2]} 4.
Nxd4 {[%clk 0:03:00.7]} 4... Nf6 {[%clk 0:02:59.6]} 5. Nc3 {[%clk 0:03:00.9]}
5... Nc6 {[%clk 0:03:00.1]} 6. Bg5 {[%clk 0:03:00.3]} 6... e6 {[%clk 0:03:00.2]}
7. Bb5 {[%clk 0:03:00.3]} 7... Bd7 {[%clk 0:02:59.7]} 8. Qd3 {[%clk 0:02:57.5]}
8... a6 {[%clk 0:02:55.9]} 9. Bxc6 {[%clk 0:02:57]} 9... Bxc6 {[%clk 0:02:50.6]}
10. O-O-O {[%clk 0:02:55.7]} 10... Rc8 {[%clk 0:02:49.7]} 11. f4 {[%clk
0:02:53.8]} 11... Be7 {[%clk 0:02:49.2]} 12. f5 {[%clk 0:02:49.3]} 12... e5
{[%clk 0:02:38.2]} 13. Nb3 {[%clk 0:02:49.1]} 13... O-O {[%clk 0:02:22.5]} 14.
Bxf6 {[%clk 0:02:48.1]} 14... Bxf6 {[%clk 0:02:23.4]} 15. Qxd6 {[%clk
0:02:47.6]} 15... Qb6 {[%clk 0:02:23.1]} 16. Nd5 {[%clk 0:02:42.5]} 16... Qd8
{[%clk 0:02:12.1]} 17. Nxf6+ {[%clk 0:02:33.1]} 17... Qxf6 {[%clk 0:02:11.7]}
18. Qxf6 {[%clk 0:02:32]} 18... gxf6 {[%clk 0:02:12.6]} 19. Nc5 {[%clk
0:01:58.9]} 19... Kg7 {[%clk 0:01:56.4]} 20. Rd6 {[%clk 0:01:49.6]} 20... b6
{[%clk 0:01:47.1]} 21. Nd7 {[%clk 0:01:25]} 21... Rfd8 {[%clk 0:01:37.7]} 22.
Nxb6 {[%clk 0:01:24]} 22... Rxd6 {[%clk 0:01:29.1]} 23. Nxc8 {[%clk 0:01:23.9]}
23... Rd8 {[%clk 0:01:18.7]} 24. Nb6 {[%clk 0:00:58]} 24... Bxe4 {[%clk
0:01:18]} 25. Rf1 {[%clk 0:00:54.2]} 25... h5 {[%clk 0:01:02.8]} 26. Nc4 {[%clk
0:00:52.9]} 26... Kh6 {[%clk 0:00:57.4]} 27. h4 {[%clk 0:00:47.3]} 27... Rg8
{[%clk 0:00:56.1]} 28. Ne3 {[%clk 0:00:40.1]} 28... Rd8 {[%clk 0:00:37.2]} 29.
Rd1 {[%clk 0:00:38.5]} 29... Rd4 {[%clk 0:00:36.1]} 30. c3 {[%clk 0:00:37.8]}
30... Rxd1+ {[%clk 0:00:26.6]} 31. Kxd1 {[%clk 0:00:37.7]} 31... Kg7 {[%clk
0:00:20.6]} 32. Kd2 {[%clk 0:00:37]} 32... Kf8 {[%clk 0:00:20.4]} 33. c4 {[%clk
0:00:37.5]} 33... a5 {[%clk 0:00:19.5]} 34. Kc3 {[%clk 0:00:37.4]} 34... Ke7
{[%clk 0:00:18.9]} 35. b3 {[%clk 0:00:34.7]} 35... Kd6 {[%clk 0:00:18.5]} 36. a3
{[%clk 0:00:35.1]} 36... Bb7 {[%clk 0:00:16.9]} 37. b4 {[%clk 0:00:35]} 37...
axb4+ {[%clk 0:00:16.7]} 38. axb4 {[%clk 0:00:35.9]} 38... e4 {[%clk 0:00:17.1]}
39. Kd4 {[%clk 0:00:35.8]} 1-0

[Event "Late-Titled-Tuesday-Blitz-April-30-2024"]
[Site "Chess.com"]
[Date "2024.04.30"]
[Round "3"]
[White "marianokar"]
[Black "MKlose11"]
[Result "0-1"]
[WhiteElo "2435"]
[BlackElo "2637"]
[TimeControl "180+1"]
[EndTime "14:29:08 PDT"]
[Termination "MKlose11 won on time"]

1. b3 {[%clk 0:02:57.3]} 1... Nf6 {[%clk 0:02:59.4]} 2. Bb2 {[%clk 0:02:58.2]}
2... g6 {[%clk 0:03:00.2]} 3. Bxf6 {[%clk 0:02:57.7]} 3... exf6 {[%clk
0:03:01.1]} 4. c4 {[%clk 0:02:57.9]} 4... f5 {[%clk 0:03:00.9]} 5. Nc3 {[%clk
0:02:58.4]} 5... Bg7 {[%clk 0:03:01.8]} 6. e3 {[%clk 0:02:58.4]} 6... O-O {[%clk
0:03:02.4]} 7. Nge2 {[%clk 0:02:58.5]} 7... c5 {[%clk 0:03:00.2]} 8. g3 {[%clk
0:02:58]} 8... Nc6 {[%clk 0:02:59.7]} 9. Bg2 {[%clk 0:02:58.5]} 9... d6 {[%clk
0:02:59.8]} 10. O-O {[%clk 0:02:57.9]} 10... Be6 {[%clk 0:03:00]} 11. Rc1 {[%clk
0:02:47.2]} 11... Qa5 {[%clk 0:02:59.3]} 12. d3 {[%clk 0:02:44.6]} 12... Rfd8
{[%clk 0:02:58.5]} 13. Qd2 {[%clk 0:02:38.3]} 13... Ne7 {[%clk 0:02:58.5]} 14.
Nf4 {[%clk 0:02:36.6]} 14... d5 {[%clk 0:02:55.5]} 15. cxd5 {[%clk 0:02:08.1]}
15... Nxd5 {[%clk 0:02:54.2]} 16. Nfxd5 {[%clk 0:01:54.9]} 16... Bxd5 {[%clk
0:02:53.1]} 17. Bxd5 {[%clk 0:01:55]} 17... Rxd5 {[%clk 0:02:53.2]} 18. Qc2
{[%clk 0:01:49.5]} 18... Rd7 {[%clk 0:02:48.3]} 19. Ne2 {[%clk 0:01:38.2]} 19...
b6 {[%clk 0:02:46.3]} 20. Nf4 {[%clk 0:01:28.4]} 20... Rad8 {[%clk 0:02:43.2]}
21. Rfd1 {[%clk 0:01:28.1]} 21... Be5 {[%clk 0:02:42.5]} 22. Rd2 {[%clk
0:01:01.8]} 22... h5 {[%clk 0:02:36.3]} 23. a4 {[%clk 0:00:53.8]} 23... h4
{[%clk 0:02:24.3]} 24. Kg2 {[%clk 0:00:52.6]} 24... hxg3 {[%clk 0:02:23.4]} 25.
hxg3 {[%clk 0:00:52.1]} 25... Kg7 {[%clk 0:02:23.6]} 26. Rh1 {[%clk 0:00:49.8]}
26... Qa6 {[%clk 0:02:21.4]} 27. Ne2 {[%clk 0:00:27.4]} 27... Qb7+ {[%clk
0:02:19.5]} 28. f3 {[%clk 0:00:27.6]} 28... Qa6 {[%clk 0:02:14.5]} 29. Nc1
{[%clk 0:00:25.5]} 29... Qa5 {[%clk 0:02:12.8]} 30. Rdd1 {[%clk 0:00:24.2]}
30... Qc3 {[%clk 0:02:12.9]} 31. Qxc3 {[%clk 0:00:23.8]} 31... Bxc3 {[%clk
0:02:12.5]} 32. Ne2 {[%clk 0:00:16.3]} 32... Bb4 {[%clk 0:02:04.7]} 33. d4
{[%clk 0:00:13.8]} 33... cxd4 {[%clk 0:02:04.3]} 34. Rxd4 {[%clk 0:00:14.1]}
34... Rxd4 {[%clk 0:02:02.4]} 35. Nxd4 {[%clk 0:00:14.6]} 35... Bc5 {[%clk
0:02:02.7]} 36. Rd1 {[%clk 0:00:14.2]} 36... Bxd4 {[%clk 0:01:58]} 37. Rxd4
{[%clk 0:00:13.1]} 37... Rc8 {[%clk 0:01:56.7]} 38. Rd7 {[%clk 0:00:12.5]} 38...
Rc3 {[%clk 0:01:48.6]} 39. Rxa7 {[%clk 0:00:10.2]} 39... Rxe3 {[%clk 0:01:48.2]}
40. b4 {[%clk 0:00:09.7]} 40... Re2+ {[%clk 0:01:47.5]} 41. Kf1 {[%clk
0:00:09.4]} 41... Rb2 {[%clk 0:01:47]} 42. a5 {[%clk 0:00:09.8]} 42... Rxb4
{[%clk 0:01:45.8]} 43. a6 {[%clk 0:00:09.9]} 43... Ra4 {[%clk 0:01:44.8]} 44.
Ke2 {[%clk 0:00:08.6]} 44... b5 {[%clk 0:01:44]} 45. f4 {[%clk 0:00:07.8]} 45...
Ra3 {[%clk 0:01:42.7]} 46. Kf2 {[%clk 0:00:07]} 46... b4 {[%clk 0:01:43.1]} 47.
Rb7 {[%clk 0:00:07.3]} 47... Rxa6 {[%clk 0:01:40.8]} 48. Rxb4 {[%clk 0:00:07.2]}
48... Ra2+ {[%clk 0:01:38.1]} 49. Kf3 {[%clk 0:00:07.1]} 49... Ra3+ {[%clk
0:01:38.7]} 50. Kf2 {[%clk 0:00:06.4]} 50... Kh6 {[%clk 0:01:38.7]} 51. Rb7
{[%clk 0:00:05]} 51... Kh5 {[%clk 0:01:32.6]} 52. Rxf7 {[%clk 0:00:04.5]} 52...
Kg4 {[%clk 0:01:33]} 53. Rg7 {[%clk 0:00:04.7]} 53... Ra2+ {[%clk 0:01:24.1]}
54. Ke3 {[%clk 0:00:03.3]} 54... Ra3+ {[%clk 0:01:18.7]} 55. Kd4 {[%clk
0:00:00.7]} 55... Kxg3 {[%clk 0:01:15.1]} 56. Rxg6+ {[%clk 0:00:00.8]} 56...
Kxf4 {[%clk 0:01:15]} 0-1

[Event "Late-Titled-Tuesday-Blitz-April-30-2024"]
[Site "Chess.com"]
[Date "2024.04.30"]
[Round "3"]
[White "manmanlai1"]
[Black "ameetghasi100"]
[Result "0-1"]
[WhiteElo "2551"]
[BlackElo "2825"]
[TimeControl "180+1"]
[EndTime "14:29:09 PDT"]
[Termination "ameetghasi100 won by resignation"]

1. e4 {[%clk 0:03:00.9]} 1... g6 {[%clk 0:02:59.5]} 2. d4 {[%clk 0:02:59.3]}
2... Bg7 {[%clk 0:03:00.4]} 3. Nf3 {[%clk 0:02:55.3]} 3... d6 {[%clk 0:03:00.6]}
4. Bc4 {[%clk 0:02:55.5]} 4... Nf6 {[%clk 0:02:59.8]} 5. Qe2 {[%clk 0:02:56.1]}
5... O-O {[%clk 0:02:59.4]} 6. e5 {[%clk 0:02:56.2]} 6... dxe5 {[%clk
0:02:55.7]} 7. dxe5 {[%clk 0:02:57.1]} 7... Nd5 {[%clk 0:02:56.2]} 8. O-O {[%clk
0:02:56.4]} 8... c6 {[%clk 0:02:56.4]} 9. h3 {[%clk 0:02:55.1]} 9... Qc7 {[%clk
0:02:47]} 10. Re1 {[%clk 0:02:53.3]} 10... a5 {[%clk 0:02:43.8]} 11. a3 {[%clk
0:02:49]} 11... Na6 {[%clk 0:02:41.2]} 12. Nbd2 {[%clk 0:02:44.5]} 12... b5
{[%clk 0:02:36]} 13. Ba2 {[%clk 0:02:43.8]} 13... Rd8 {[%clk 0:02:32.9]} 14. Nf1
{[%clk 0:02:32.7]} 14... Nc5 {[%clk 0:02:30.4]} 15. Bg5 {[%clk 0:02:19.9]} 15...
Ba6 {[%clk 0:02:29.4]} 16. c4 {[%clk 0:02:11.1]} 16... b4 {[%clk 0:02:23.7]} 17.
Rac1 {[%clk 0:02:03.2]} 17... Nb6 {[%clk 0:02:05.8]} 18. Bb1 {[%clk 0:01:54.5]}
18... bxa3 {[%clk 0:01:59.1]} 19. bxa3 {[%clk 0:01:54]} 19... Nba4 {[%clk
0:01:59.5]} 20. h4 {[%clk 0:01:46.7]} 20... Rab8 {[%clk 0:01:58.4]} 21. h5
{[%clk 0:01:42.8]} 21... Rxb1 {[%clk 0:01:16.4]} 22. Rxb1 {[%clk 0:01:39.2]}
22... Nc3 {[%clk 0:01:16.7]} 23. Qe3 {[%clk 0:01:39.1]} 23... Nd3 {[%clk
0:01:14.8]} 24. hxg6 {[%clk 0:01:34.3]} 24... hxg6 {[%clk 0:01:13.7]} 25. e6
{[%clk 0:01:32]} 25... f5 {[%clk 0:01:00.7]} 26. Nh4 {[%clk 0:01:08.5]} 26...
Bd4 {[%clk 0:00:59.4]} 27. Qxd3 {[%clk 0:00:15.7]} 27... Bxf2+ {[%clk
0:00:58.7]} 28. Kxf2 {[%clk 0:00:16.6]} 28... Rxd3 {[%clk 0:00:59.3]} 29. Rb2
{[%clk 0:00:15]} 29... Ne4+ {[%clk 0:00:58]} 30. Rxe4 {[%clk 0:00:12.6]} 30...
fxe4 {[%clk 0:00:58.9]} 31. Nxg6 {[%clk 0:00:13]} 31... Bxc4 {[%clk 0:00:47.3]}
32. Nxe7+ {[%clk 0:00:12.4]} 32... Kh7 {[%clk 0:00:47.4]} 33. Ne3 {[%clk
0:00:12]} 33... Bxe6 {[%clk 0:00:46.3]} 34. Rb1 {[%clk 0:00:11.9]} 34... Rd2+
{[%clk 0:00:36.6]} 35. Ke1 {[%clk 0:00:12]} 35... Ra2 {[%clk 0:00:25]} 36. Bh4
{[%clk 0:00:12.1]} 36... Qf4 {[%clk 0:00:23.1]} 37. Bf2 {[%clk 0:00:11.9]} 37...
Qxf2+ {[%clk 0:00:22.5]} 0-1

[Event "Late-Titled-Tuesday-Blitz-April-30-2024"]
[Site "Chess.com"]
[Date "2024.04.30"]
[Round "3"]
[White "Revan_2002"]
[Black "Attacker_2006"]
[Result "1-0"]
[WhiteElo "2760"]
[BlackElo "2499"]
[TimeControl "180+1"]
[EndTime "14:29:12 PDT"]
[Termination "Revan_2002 won on time"]

1. Nf3 {[%clk 0:03:00.9]} 1... g6 {[%clk 0:02:52.7]} 2. d4 {[%clk 0:02:55.6]}
2... Bg7 {[%clk 0:02:53.6]} 3. c4 {[%clk 0:02:55.6]} 3... d6 {[%clk 0:02:54.5]}
4. e3 {[%clk 0:02:56]} 4... Nc6 {[%clk 0:02:48.1]} 5. Be2 {[%clk 0:02:56.2]}
5... e5 {[%clk 0:02:45.5]} 6. O-O {[%clk 0:02:56.7]} 6... f5 {[%clk 0:02:42.5]}
7. dxe5 {[%clk 0:02:55.1]} 7... Nxe5 {[%clk 0:02:35]} 8. Nc3 {[%clk 0:02:55]}
8... Nxf3+ {[%clk 0:02:31.6]} 9. Bxf3 {[%clk 0:02:55.9]} 9... Bxc3 {[%clk
0:02:29.2]} 10. bxc3 {[%clk 0:02:55.6]} 10... Nf6 {[%clk 0:02:26.7]} 11. Rb1
{[%clk 0:02:55.2]} 11... Rb8 {[%clk 0:02:19.6]} 12. Qa4+ {[%clk 0:02:52]} 12...
Bd7 {[%clk 0:02:05.7]} 13. Qxa7 {[%clk 0:02:51.9]} 13... Ra8 {[%clk 0:02:02.5]}
14. Qxb7 {[%clk 0:02:51.1]} 14... Rxa2 {[%clk 0:02:00.1]} 15. c5 {[%clk
0:02:48.8]} 15... Ra5 {[%clk 0:01:12.9]} 16. cxd6 {[%clk 0:02:45.2]} 16... cxd6
{[%clk 0:01:11.4]} 17. Rd1 {[%clk 0:02:41.3]} 17... O-O {[%clk 0:00:43.4]} 18.
Rxd6 {[%clk 0:02:36.3]} 18... Qe8 {[%clk 0:00:42.5]} 19. Qb4 {[%clk 0:02:10.4]}
19... Re5 {[%clk 0:00:37.5]} 20. c4 {[%clk 0:02:05.6]} 20... g5 {[%clk
0:00:33.8]} 21. Bb2 {[%clk 0:02:02.8]} 21... Re6 {[%clk 0:00:34.3]} 22. Bxf6
{[%clk 0:01:50.2]} 22... Rexf6 {[%clk 0:00:32.4]} 23. Bd5+ {[%clk 0:01:49]}
23... Kh8 {[%clk 0:00:32.5]} 24. Qc3 {[%clk 0:01:43.7]} 24... Qe7 {[%clk
0:00:33]} 25. Rbb6 {[%clk 0:01:42.4]} 25... Kg7 {[%clk 0:00:29.1]} 26. h4 {[%clk
0:01:25]} 26... Kg6 {[%clk 0:00:27.6]} 27. h5+ {[%clk 0:01:22.8]} 27... Kg7
{[%clk 0:00:16.9]} 28. Rxd7 {[%clk 0:01:22.2]} 28... Qxd7 {[%clk 0:00:14.8]} 29.
Rb7 {[%clk 0:01:22.1]} 29... Qxb7 {[%clk 0:00:15.4]} 30. Bxb7 {[%clk 0:01:22.4]}
30... Rb8 {[%clk 0:00:16.1]} 31. Bd5 {[%clk 0:01:19.4]} 31... Rb6 {[%clk
0:00:15]} 32. c5 {[%clk 0:01:17.4]} 32... Rb5 {[%clk 0:00:13.3]} 33. e4 {[%clk
0:01:12]} 33... fxe4 {[%clk 0:00:12.5]} 34. h6+ {[%clk 0:01:11.7]} 34... Kg6
{[%clk 0:00:12.6]} 35. Bxe4+ {[%clk 0:01:11.9]} 35... Kh5 {[%clk 0:00:10.4]} 36.
Qxf6 {[%clk 0:01:08.9]} 36... Rxc5 {[%clk 0:00:10.7]} 37. Bf3+ {[%clk
0:00:48.5]} 37... Kh4 {[%clk 0:00:08.5]} 38. Kh2 {[%clk 0:00:42.8]} 1-0

[Event "Late-Titled-Tuesday-Blitz-April-30-2024"]
[Site "Chess.com"]
[Date "2024.04.30"]
[Round "3"]
[White "Lady_Nika"]
[Black "BeautiFullMindChess"]
[Result "1-0"]
[WhiteElo "2483"]
[BlackElo "2247"]
[TimeControl "180+1"]
[EndTime "14:29:12 PDT"]
[Termination "Lady_Nika won on time"]

1. g4 {[%clk 0:03:00.9]} 1... d5 {[%clk 0:02:57.5]} 2. h3 {[%clk 0:03:00.9]}
2... c5 {[%clk 0:02:54.4]} 3. Bg2 {[%clk 0:03:01.1]} 3... Nc6 {[%clk 0:02:54.1]}
4. b3 {[%clk 0:03:01.2]} 4... e5 {[%clk 0:02:53.7]} 5. Bb2 {[%clk 0:03:01.3]}
5... Be6 {[%clk 0:02:51.8]} 6. d3 {[%clk 0:03:01.1]} 6... h5 {[%clk 0:02:41.4]}
7. gxh5 {[%clk 0:02:58.5]} 7... Nf6 {[%clk 0:02:36.3]} 8. Nd2 {[%clk 0:02:56.2]}
8... Nxh5 {[%clk 0:02:31.1]} 9. e3 {[%clk 0:02:56]} 9... Be7 {[%clk 0:02:19.9]}
10. Qe2 {[%clk 0:02:53.3]} 10... Qc7 {[%clk 0:02:05.5]} 11. O-O-O {[%clk
0:02:52.8]} 11... Nf6 {[%clk 0:01:48.5]} 12. c4 {[%clk 0:02:51.9]} 12... O-O-O
{[%clk 0:01:35.8]} 13. Ngf3 {[%clk 0:02:50]} 13... d4 {[%clk 0:01:19.7]} 14. Ng5
{[%clk 0:02:46.5]} 14... Nb4 {[%clk 0:01:08.7]} 15. Nxe6 {[%clk 0:02:37.5]}
15... fxe6 {[%clk 0:01:03]} 16. Nf3 {[%clk 0:02:31.7]} 16... Nxa2+ {[%clk
0:00:42.7]} 17. Kb1 {[%clk 0:02:30.6]} 17... Nb4 {[%clk 0:00:42.9]} 18. exd4
{[%clk 0:02:29.8]} 18... exd4 {[%clk 0:00:34.7]} 19. Qxe6+ {[%clk 0:02:22.2]}
19... Kb8 {[%clk 0:00:34.1]} 20. Ba3 {[%clk 0:02:16.8]} 20... Nc6 {[%clk
0:00:25.1]} 21. Rhe1 {[%clk 0:02:11.4]} 21... Rd6 {[%clk 0:00:19]} 22. Qe2
{[%clk 0:02:03.1]} 22... Qa5 {[%clk 0:00:18.8]} 23. Qb2 {[%clk 0:02:02.1]} 23...
Bd8 {[%clk 0:00:15.9]} 24. Ng5 {[%clk 0:01:59.1]} 24... Rf8 {[%clk 0:00:14.2]}
25. Ne6 {[%clk 0:01:58.3]} 25... Re8 {[%clk 0:00:13.3]} 26. Bd5 {[%clk
0:01:45.2]} 26... Nxd5 {[%clk 0:00:09.5]} 27. cxd5 {[%clk 0:01:46.1]} 27... Nb4
{[%clk 0:00:10.2]} 28. Nxd8 {[%clk 0:01:39.2]} 28... Rexd8 {[%clk 0:00:08.7]}
29. Bxb4 {[%clk 0:01:37.7]} 29... cxb4 {[%clk 0:00:08.7]} 30. Qxd4 {[%clk
0:01:36.5]} 30... Rxd5 {[%clk 0:00:08.9]} 31. Qf4+ {[%clk 0:01:35.2]} 31... Ka8
{[%clk 0:00:09.6]} 32. Qc4 {[%clk 0:01:26.6]} 32... a6 {[%clk 0:00:09.4]} 33.
Re2 {[%clk 0:01:16.7]} 33... Rc5 {[%clk 0:00:09.5]} 34. Qe6 {[%clk 0:01:15.5]}
34... Rc3 {[%clk 0:00:08.9]} 35. d4 {[%clk 0:01:12.1]} 35... Qa3 {[%clk
0:00:07.3]} 36. Rb2 {[%clk 0:01:11.9]} 36... Rdc8 {[%clk 0:00:05.8]} 37. d5
{[%clk 0:00:57.3]} 37... Rxb3 {[%clk 0:00:05.2]} 38. Qxc8+ {[%clk 0:00:56.6]}
38... Ka7 {[%clk 0:00:06.1]} 39. Qc5+ {[%clk 0:00:56.5]} 39... Ka8 {[%clk
0:00:04.9]} 40. Qc2 {[%clk 0:00:55.8]} 40... Rc3 {[%clk 0:00:03.7]} 41. Qe2
{[%clk 0:00:53.6]} 41... Qa4 {[%clk 0:00:00.1]} 42. Ra2 {[%clk 0:00:49.4]} 42...
Ra3 {[%clk 0:00:00.8]} 43. Rxa3 {[%clk 0:00:49]} 1-0

[Event "Late-Titled-Tuesday-Blitz-April-30-2024"]
[Site "Chess.com"]
[Date "2024.04.30"]
[Round "3"]
[White "cristiano78"]
[Black "WindWhistler11"]
[Result "0-1"]
[WhiteElo "2292"]
[BlackElo "2560"]
[TimeControl "180+1"]
[EndTime "14:29:18 PDT"]
[Termination "WindWhistler11 won by resignation"]

1. d4 {[%clk 0:03:00.1]} 1... Nf6 {[%clk 0:02:59.5]} 2. c4 {[%clk 0:03:00]} 2...
e6 {[%clk 0:02:58.1]} 3. Nf3 {[%clk 0:02:59.8]} 3... c5 {[%clk 0:02:58.8]} 4. d5
{[%clk 0:02:59.8]} 4... exd5 {[%clk 0:02:59.7]} 5. cxd5 {[%clk 0:02:59.9]} 5...
Bd6 {[%clk 0:03:00.5]} 6. Nc3 {[%clk 0:02:58.5]} 6... O-O {[%clk 0:03:00.9]} 7.
h3 {[%clk 0:02:58.5]} 7... Re8 {[%clk 0:03:01.2]} 8. Bg5 {[%clk 0:02:55]} 8...
Bc7 {[%clk 0:02:52.3]} 9. e3 {[%clk 0:02:51]} 9... d6 {[%clk 0:02:51.7]} 10. Bb5
{[%clk 0:02:48.8]} 10... Nbd7 {[%clk 0:02:47]} 11. O-O {[%clk 0:02:48.1]} 11...
a6 {[%clk 0:02:45.7]} 12. Bxd7 {[%clk 0:02:47.7]} 12... Bxd7 {[%clk 0:02:44.9]}
13. a4 {[%clk 0:02:47.1]} 13... h6 {[%clk 0:02:42.8]} 14. Bxf6 {[%clk
0:02:45.8]} 14... Qxf6 {[%clk 0:02:42]} 15. e4 {[%clk 0:02:45.9]} 15... Ba5
{[%clk 0:02:33.9]} 16. Qc2 {[%clk 0:02:43.5]} 16... Bxc3 {[%clk 0:02:13.4]} 17.
bxc3 {[%clk 0:02:40.6]} 17... Qg6 {[%clk 0:02:13.1]} 18. Kh2 {[%clk 0:02:23.8]}
18... Qxe4 {[%clk 0:02:05.1]} 19. Qxe4 {[%clk 0:02:22.7]} 19... Rxe4 {[%clk
0:02:04.3]} 20. Rfb1 {[%clk 0:02:22.4]} 20... Rb8 {[%clk 0:01:57.4]} 21. Rb6
{[%clk 0:02:20.6]} 21... Rxa4 {[%clk 0:01:52.7]} 22. Re1 {[%clk 0:02:01.3]}
22... Kf8 {[%clk 0:01:36.7]} 23. Rxd6 {[%clk 0:02:00]} 23... Bf5 {[%clk
0:01:35.3]} 24. Ne5 {[%clk 0:01:56.9]} 24... Re8 {[%clk 0:01:01.2]} 25. g4
{[%clk 0:01:54]} 25... Bc8 {[%clk 0:00:56.9]} 26. Kg3 {[%clk 0:01:50.5]} 26...
f6 {[%clk 0:00:49.8]} 27. Ng6+ {[%clk 0:01:48.8]} 27... Kf7 {[%clk 0:00:50.4]}
28. Rxe8 {[%clk 0:01:48.4]} 28... Kxe8 {[%clk 0:00:51.3]} 29. Nf4 {[%clk
0:01:45.9]} 29... Rc4 {[%clk 0:00:47.4]} 30. Ne6 {[%clk 0:01:31.5]} 30... Rxc3+
{[%clk 0:00:42.7]} 31. f3 {[%clk 0:01:29.6]} 31... Bxe6 {[%clk 0:00:35.3]} 32.
Rxe6+ {[%clk 0:01:25.9]} 32... Kd7 {[%clk 0:00:34.4]} 33. Rb6 {[%clk 0:01:23.7]}
33... Kc7 {[%clk 0:00:32.2]} 34. Re6 {[%clk 0:01:23.6]} 34... Rd3 {[%clk
0:00:29.9]} 35. Re7+ {[%clk 0:01:22.6]} 35... Kb6 {[%clk 0:00:29.7]} 36. Rxg7
{[%clk 0:01:23.1]} 36... Rxd5 {[%clk 0:00:27.5]} 37. Rg6 {[%clk 0:01:22.4]}
37... Rd6 {[%clk 0:00:27.1]} 38. Rxh6 {[%clk 0:01:22.4]} 38... c4 {[%clk
0:00:27.4]} 39. g5 {[%clk 0:01:18.4]} 39... c3 {[%clk 0:00:14.9]} 40. Rxf6
{[%clk 0:01:00.6]} 40... Rc6 {[%clk 0:00:14.9]} 41. Rxc6+ {[%clk 0:00:58.9]}
41... Kxc6 {[%clk 0:00:14.4]} 42. g6 {[%clk 0:00:58.9]} 42... c2 {[%clk
0:00:15.1]} 43. Kg4 {[%clk 0:00:44.8]} 43... c1=Q {[%clk 0:00:14.5]} 44. f4
{[%clk 0:00:44.8]} 44... Kd7 {[%clk 0:00:13.4]} 45. Kg5 {[%clk 0:00:44.3]} 45...
Ke7 {[%clk 0:00:13.5]} 46. h4 {[%clk 0:00:43.4]} 46... Qg1+ {[%clk 0:00:12.8]}
47. Kh6 {[%clk 0:00:43.4]} 47... Kf6 {[%clk 0:00:12.2]} 48. h5 {[%clk
0:00:43.8]} 48... Qg4 {[%clk 0:00:12.6]} 0-1

[Event "Late-Titled-Tuesday-Blitz-April-30-2024"]
[Site "Chess.com"]
[Date "2024.04.30"]
[Round "3"]
[White "Mikhail_Golubev"]
[Black "traack"]
[Result "1-0"]
[WhiteElo "2630"]
[BlackElo "2434"]
[TimeControl "180+1"]
[EndTime "14:29:21 PDT"]
[Termination "Mikhail_Golubev won on time"]

1. e4 {[%clk 0:03:00.9]} 1... c5 {[%clk 0:02:59.1]} 2. Nf3 {[%clk 0:03:00.8]}
2... d6 {[%clk 0:02:59.5]} 3. d4 {[%clk 0:03:00.7]} 3... cxd4 {[%clk 0:03:00.4]}
4. Nxd4 {[%clk 0:03:01]} 4... Nf6 {[%clk 0:03:01.3]} 5. Nc3 {[%clk 0:03:00.9]}
5... Nc6 {[%clk 0:03:01.8]} 6. Bc4 {[%clk 0:03:00]} 6... Qb6 {[%clk 0:03:00.7]}
7. Nb3 {[%clk 0:02:56.1]} 7... e6 {[%clk 0:03:00.1]} 8. Bf4 {[%clk 0:02:56]}
8... Ne5 {[%clk 0:02:56.1]} 9. Be2 {[%clk 0:02:54.5]} 9... Be7 {[%clk
0:02:53.7]} 10. g4 {[%clk 0:02:52.4]} 10... O-O {[%clk 0:02:47.1]} 11. g5 {[%clk
0:02:51.6]} 11... Nfd7 {[%clk 0:02:46.8]} 12. Qd2 {[%clk 0:02:51.6]} 12... a6
{[%clk 0:02:03.4]} 13. O-O-O {[%clk 0:02:33.1]} 13... Qc7 {[%clk 0:02:02.5]} 14.
h4 {[%clk 0:02:14.9]} 14... b5 {[%clk 0:02:00.2]} 15. h5 {[%clk 0:02:10.1]}
15... Bb7 {[%clk 0:01:57.7]} 16. a3 {[%clk 0:01:56.6]} 16... Nc5 {[%clk
0:01:46.8]} 17. Nxc5 {[%clk 0:01:48.7]} 17... Qxc5 {[%clk 0:01:44.1]} 18. Be3
{[%clk 0:01:44.5]} 18... Qc7 {[%clk 0:01:37.2]} 19. g6 {[%clk 0:01:33.8]} 19...
fxg6 {[%clk 0:01:35.3]} 20. f4 {[%clk 0:01:32.4]} 20... Nc4 {[%clk 0:01:32.6]}
21. Bxc4 {[%clk 0:01:32.4]} 21... Qxc4 {[%clk 0:01:31.9]} 22. hxg6 {[%clk
0:01:32.4]} 22... hxg6 {[%clk 0:01:10.4]} 23. Qg2 {[%clk 0:01:15.4]} 23... d5
{[%clk 0:00:55.6]} 24. Qxg6 {[%clk 0:01:11]} 24... Rf6 {[%clk 0:00:25.9]} 25.
Qh7+ {[%clk 0:01:07.5]} 25... Kf7 {[%clk 0:00:25.2]} 26. e5 {[%clk 0:00:53.7]}
26... Rg6 {[%clk 0:00:24.7]} 27. Qh5 {[%clk 0:00:47.5]} 27... d4 {[%clk
0:00:17.9]} 28. Rhg1 {[%clk 0:00:38.1]} 28... dxc3 {[%clk 0:00:04.8]} 29. Qxg6+
{[%clk 0:00:36.5]} 29... Kf8 {[%clk 0:00:05.1]} 30. Qxg7+ {[%clk 0:00:35]} 30...
Ke8 {[%clk 0:00:03.8]} 31. Qg8+ {[%clk 0:00:30.2]} 31... Bf8 {[%clk 0:00:03.1]}
32. Rg7 {[%clk 0:00:13.4]} 32... cxb2+ {[%clk 0:00:02.4]} 33. Kb1 {[%clk
0:00:12.3]} 1-0